Cogmind - Beta 10.1 @@@ ROGUE MODE // 2020.09.27 @ 12:01:13 Player: zeramoth Result: Self-destructed Performance ------------- Evolutions (1) 500 Regions Visited (3) 600 Robots Destroyed (16) 80 Value Destroyed (330) 330 Prototype IDs (0) 0 Alien Tech Used (0) 0 Bonus (-5) -5 TOTAL SCORE: 1505 Bonus ------- Follower Combat Kills 35 Friendly Fire -40 Cogmind --------- Core Integrity 280/400 Matter 300/300 Energy 100/100 System Corruption 0% Temperature Cool (0) Movement Core (400) Ox7 Location -9/Materials Parts ------- > --- POWER (1) -------- (None) > --- PROPULSION (3) --- (None) > --- UTILITY (3) ------ Small Storage Unit Large Storage Unit > --- WEAPON (2) ------- Great Maul > --- INVENTORY (12) --- Wheel Compact Wheel Medium Storage Unit Large Storage Unit Heavy Assault Rifle Grenade Launcher Grenade Launcher Great Maul Peak State ------------ > --- POWER ------------ Light Ion Engine > --- PROPULSION ------- Aluminum Leg Aluminum Leg Aluminum Leg > --- UTILITY ---------- Small Storage Unit Large Storage Unit Hardened Light Armor Plating > --- WEAPON ----------- Light Assault Rifle Great Maul > --- INVENTORY -------- Aluminum Leg Wheel Compact Wheel Medium Storage Unit Large Storage Unit Grenade Launcher Grenade Launcher Great Maul [Rating: 13] Favorites ----------- Power Light Ion Engine Engine Light Ion Engine Propulsion Aluminum Leg Leg Aluminum Leg Utility Small Storage Unit Storage Small Storage Unit Protection Hardened Light Armor Plating Weapon Light Assault Rifle Energy Gun EM Pulse Gun Ballistic Gun Light Assault Rifle Launcher Grenade Launcher Impact Weapon Great Maul Build | -11 -10 -10 -9 ------- Run | Scr Mat Min Mat Slots Evolved 2 | . . . 2 Power . | . . . . Propulsion 1 | . . . 1 Utility 1 | . . . 1 Weapon . | . . . . Parts Attached 10 | . 3 2 5 Power 1 | . . . 1 Engine 1 | . . . 1 Core . | . . . . Reactor . | . . . . Propulsion 2 | . . . 2 Treads . | . . . . Leg 2 | . . . 2 Wheel . | . . . . Hover . | . . . . Flight . | . . . . Utility 2 | . 1 . 1 Device . | . . . . Storage 1 | . 1 . . Processor . | . . . . Hackware . | . . . . Protection 1 | . . . 1 Artifact . | . . . . Weapon 5 | . 2 2 1 Energy Gun . | . . . . Energy Cannon . | . . . . Ballistic Gun 2 | . 1 1 . Ballistic Cannon . | . . . . Launcher 2 | . 1 1 . Special Weapon . | . . . . Impact Weapon 1 | . . . 1 Slashing Weapon . | . . . . Piercing Weapon . | . . . . Special Melee Weapon . | . . . . Unidentified Prototypes . | . . . . Parts Lost 10 | . 1 2 7 Power 2 | . . 1 1 Propulsion 4 | . . . 4 Utility 1 | . . . 1 Weapon 3 | . 1 1 1 Highest Loss Streak 3 | . 1 2 3 Average Slot Usage (%) 88 | . 90 98 81 Engine 10 | . 14 14 5 Leg 29 | . 28 28 31 Storage 22 | . 19 28 22 Protection 2 | . . . 6 Energy Gun 3 | . 9 . . Ballistic Gun 15 | . 17 26 6 Impact Weapon 3 | . . . 8 Naked Turns . | . . . . Heaviest Build 33 | 10 27 25 33 Greatest Support 30 | 20 20 20 30 Greatest Overweight (x) 1 | . 1 1 1 Average Overweight (x) . | . . 1 . Largest Inventory Capacity 12 | 6 12 12 12 Average Capacity 10 | 6 8 12 12 Most Carried 9 | 6 8 9 9 Average Carried 7 | 6 6 8 7 Final Capacity 12 | 6 12 12 12 Final Carried 9 | 6 7 9 8 Class Distribution -------------------- 100% | Mutant Dominant Class ---------------- Mutant | -10/Materials Mutant | -10/Mines Mutant | -9/Materials Resources | -11 -10 -10 -9 ----------- Run | Scr Mat Min Mat Matter Collected 340 | 200 22 95 23 Remotely . | . . . . Salvage Created 375 | . 120 71 184 Parts 27 | . 14 9 4 Haulers Intercepted . | . . . . Recyclers Shooed . | . . . . Parts Field Recycled . | . . . . Retrieved Matter . | . . . . Parts Self-Destructed . | . . . . Prevented . | . . . . Kills | -11 -10 -10 -9 ------- Run | Scr Mat Min Mat Combat Hostiles Destroyed 15 | . 5 5 5 Melee 2 | . . . 2 Guns 5 | . 2 3 . AOE 5 | . 3 2 . Classes Destroyed 4 | . 3 . 1 Worker 1 | . 1 . . Swarmer 8 | . 3 4 1 Grunt 6 | . 2 1 3 Sentry 1 | . . . 1 Best Kill Streak 4 | . 4 2 2 Combat Bots Only 3 | . 3 2 2 Max Kills in Single Turn 4 | . 4 2 1 Gunslinging . | . . . . Exploded 3 | . 3 2 . Melee 1 | . . . 1 Uniques/NPCs Destroyed . | . . . . Combat | -11 -10 -10 -9 -------- Run | Scr Mat Min Mat Damage Taken 1273 | . 135 265 873 Core 217 | . 46 51 120 Absorbed by Shields . | . . . . Core Remaining (%) 80 | 100 . 61 . Volleys Fired 38 | . 11 27 . Largest 2 | . 2 2 . Hottest 60 | . 60 40 . Shots Fired 69 | . 21 48 . Gun 67 | . 20 47 . Cannon . | . . . . Launcher 2 | . 1 1 . Special . | . . . . Kinetic 57 | . 10 47 . Thermal . | . . . . Explosive 2 | . 1 1 . Electromagnetic 10 | . 10 . . Robot Hit Streak 12 | . 9 12 . Robot Miss Streak 6 | . 1 6 . Penetration Max . | . . . . Secondary Targets 1 | . . 1 . Max Gunslinging Chain 1 | . . 1 . Shots Hit Robots 75 | . 18 30 27 Core Hits 23 | . 9 11 3 Critical Hits . | . . . . Critical Kills . | . . . . Critical Parts Destroyed . | . . . . Melee Attacks 37 | . . . 37 Impact 37 | . . . 37 Slashing . | . . . . Piercing . | . . . . Sneak Attacks . | . . . . Combat Hostiles . | . . . . Follow-up Attacks . | . . . . Damage Inflicted 1535 | . 365 407 763 Guns 424 | . 196 228 . Cannons . | . . . . Explosions 348 | . 169 179 . Melee 754 | . . . 754 Ramming 9 | . . . 9 Kinetic 295 | . 67 228 . Thermal . | . . . . Explosive 348 | . 169 179 . Electromagnetic 129 | . 129 . . Impact 754 | . . . 754 Slashing . | . . . . Piercing . | . . . . Highest Corruption . | . . . . Average Corruption . | . . . . Corruption Purged . | . . . . Overload Shots . | . . . . Overflow Damage 95 | . . 8 87 Projectiles . | . . . . Explosions 8 | . . 8 . Melee 87 | . . . 87 Knockbacks 2 | . . . 2 Impact 2 | . . . 2 Kinetic . | . . . . Secondary . | . . . . Self-Inflicted Damage 19 | . . 15 4 Shots 1 | . . 1 . Rammed 2 | . . . 2 Targets Rammed 2 | . . . 2 Kicked . | . . . . Crushed . | . . . . Highest Temperature 70 | . 70 . . Average Temperature 27 | . 27 . . Received Heat Transfer 312 | . 60 . 252 Siege Activations . | . . . . Robots Corrupted . | . . . . Combat Hostiles . | . . . . Parts Fried 3 | . . . 3 Impact Corruptions 7 | . . . 7 Robots Melted . | . . . . Combat Hostiles . | . . . . Parts Melted . | . . . . Heat Transferred . | . . . . Parts Sabotaged . | . . . . Parts Stolen . | . . . . Parts Stripped . | . . . . Power Chain Reactions . | . . . . Missiles Intercepted . | . . . . Alert | -11 -10 -10 -9 ------- Run | Scr Mat Min Mat Peak Influence 188 | . 138 188 141 Initial 61 | . . 53 61 Average 97 | . 71 140 97 Maximum Alert Level . | . . . . Low Security (%) 100 | 100 100 100 100 Level 1 . | . . . . Level 2 . | . . . . Level 3 . | . . . . Level 4 . | . . . . Level 5 . | . . . . High Security . | . . . . Max Security . | . . . . Squads Dispatched 3 | . 1 . 2 Investigation 2 | . 1 . 1 Extermination . | . . . . Reinforcement 1 | . . . 1 Assault . | . . . . Garrison . | . . . . Intercept . | . . . . Construction Impeded . | . . . . Haulers Reinforced . | . . . . Stealth | -11 -10 -10 -9 --------- Run | Scr Mat Min Mat Distress Signals . | . . . . Communications Jammed . | . . . . Distress Signals . | . . . . Times Spotted 34 | . 8 13 13 Peak Tracking Total 6 | . 3 6 4 Tactical Retreats 7 | . 2 2 3 Traps | -11 -10 -10 -9 ------- Run | Scr Mat Min Mat Traps Triggered 1 | . . . 1 Indirectly . | . . . . Trap Hack Attempts . | . . . . Triggered . | . . . . Disarmed . | . . . . Reprogrammed . | . . . . Reused . | . . . . Traps Extracted . | . . . . Installed . | . . . . Triggered . | . . . . Machines | -11 -10 -10 -9 ---------- Run | Scr Mat Min Mat Machines Disabled . | . . . . Max in Single Turn . | . . . . Machines Sabotaged . | . . . . Garrisons Compromised . | . . . . Overloaded Fab Kills . | . . . . Fab Network Shutdowns . | . . . . Hacking | -11 -10 -10 -9 --------- Run | Scr Mat Min Mat Machines Accessed 2 | . 1 . 1 Terminals 2 | . 1 . 1 Fabricators . | . . . . Repair Stations . | . . . . Recycling Units . | . . . . Scanalyzers . | . . . . Garrison Access . | . . . . Total Hacks 7 | . 4 . 3 Successful 2 | . 2 . . Failed 5 | . 2 . 3 Catastrophic . | . . . . Database Lockouts . | . . . . Manual 7 | . 4 . 3 Terminals 7 | . 4 . 3 Fabricators . | . . . . Repair Stations . | . . . . Recycling Units . | . . . . Scanalyzers . | . . . . Garrison Access . | . . . . Terminal Hacks 1 | . 1 . . Registered Components 1 | . 1 . . Fabricator Hacks . | . . . . Repair Station Hacks . | . . . . Recycling Unit Hacks . | . . . . Scanalyzer . | . . . . Garrison Access Hacks . | . . . . Unauthorized Hacks 1 | . 1 . . Terminals 1 | . 1 . . Botnet 1 | . 1 . . Fabricators . | . . . . Repair Stations . | . . . . Recycling Units . | . . . . Scanalyzers . | . . . . Garrison Access . | . . . . Data Cores Recovered . | . . . . Used . | . . . . Hacking Detections 2 | . 1 . 1 Full Trace Events 1 | . 1 . . Feedback Events . | . . . . Feedback Blocked . | . . . . Robot Schematics Acquired . | . . . . Robots Built . | . . . . Matter . | . . . . Time . | . . . . Total Robot Build Rating . | . . . . Part Schematics Acquired . | . . . . Parts Built . | . . . . Matter . | . . . . Time . | . . . . Total Part Build Rating . | . . . . Parts Repaired . | . . . . Time . | . . . . Parts Recycled . | . . . . Recycled Matter . | . . . . Retrieved Matter . | . . . . Retrieved Components . | . . . . Parts Scanalyzed . | . . . . Part Schematics Acquired . | . . . . Parts Damaged . | . . . . Bothacking | -11 -10 -10 -9 ------------ Run | Scr Mat Min Mat Used RIF Installer . | . . . . Robots Hacked . | . . . . Non-combat . | . . . . Combat . | . . . . Robot Hacks Applied . | . . . . Relay Couplers Released . | . . . . Robots Rewired . | . . . . Allies Hacked . | . . . . Hacks Repelled . | . . . . Allies | -11 -10 -10 -9 -------- Run | Scr Mat Min Mat Total Allies 1 | . . 1 . Largest Group 1 | . . 1 . Highest-Rated Group 31 | . . 31 . Highest-Rated Ally 31 | . . 31 . Total Orders . | . . . . Ally Attacks 13 | . . 13 . Total Damage 151 | . . 151 . Kills 1 | . . 1 . Allies Corrupted . | . . . . Allies Melted . | . . . . Intel | -11 -10 -10 -9 ------- Run | Scr Mat Min Mat Robot Analysis Total . | . . . . Derelict Logs Recovered . | . . . . Drone Launches . | . . . . Drone Recoveries . | . . . . Exploration | -11 -10 -10 -9 ------------- Run | Scr Mat Min Mat Turns Passed 998 | 4 353 229 412 Spaces Moved 518 | 4 215 98 201 Core . | . . . . Treads . | . . . . Legs 518 | 4 215 98 201 Wheels . | . . . . Hover . | . . . . Flight . | . . . . Fastest Speed 120 | 120 120 150 120 Average Speed 134 | 120 131 150 130 Slowest Speed 150 | 120 150 150 150 Overloaded Moves . | . . . . Propulsion Burnouts . | . . . . Robots Hopped . | . . . . Cave-ins Triggered . | . . . . Exploration Rate (%) 21 | 2 38 26 18 Regions Visited 3 Branch Regions 1 Pre-discovered Areas 1 | . . 1 . Known Exits Taken . | . . . . Unknown Exits Taken 3 | 1 1 1 . Scrap Searched . | . . . . Spaces Dug . | . . . . Terrain Destroyed 19 | . 9 10 . Melee . | . . . . Projectile . | . . . . AOE 19 | . 9 10 . Terrain Rammed . | . . . . Walls Destroyed . | . . . . Machines Disabled . | . . . . Actions | -11 -10 -10 -9 --------- Run | Scr Mat Min Mat Total 685 | 3 266 140 276 Wait 73 | . 32 12 29 Move 515 | 3 214 97 201 Hop . | . . . . Pick Up 8 | . 4 2 2 Fast Attach 3 | . 1 . 2 Attach 4 | . 1 . 3 Detach . | . . . . Swap 3 | . 1 2 . Drop 2 | . 2 . . Fire 38 | . 11 27 . Melee 37 | . . . 37 Ram . | . . . . Kick 2 | . . . 2 Crush . | . . . . Escape Stasis . | . . . . Rewire . | . . . . Trap . | . . . . Miscellaneous . | . . . . Route ------- -11/Scrapyard -10/Materials -10/Mines -9/Materials History --------- Turn | Location | Event 1 | -11/Scrapyard | Discovered new exit (range 1) 5 | -11/Scrapyard | Entered Materials 302 | -10/Materials | Build established: Mutant 337 | -10/Materials | Discovered new exit (range 14) 358 | -10/Materials | Entered Mines 361 | -10/Mines | Escorted by a lone wolf Derelict 381 | -10/Mines | Learned location of Storage (-9) 570 | -10/Mines | Discovered new exit (range 12) 587 | -10/Mines | Entered Materials 587 | -9/Materials | Evolved 2 slots: Propulsion x1, Utility x1 881 | -9/Materials | Lost 3 parts (1n1u1w) 999 | -9/Materials | Self-destructed Last Messages --------------- 00947_ Aluminum Leg destroyed. 00948_ T-07 Excavator is excavating. 00950_ U-05 Engineer lays Concrete. 00952_ T-07 Excavator is excavating. 00952_ U-05 Engineer lays Concrete. 00955_ Destroyed Heat Sink. 00955_ Destroyed Ion Engine. 00955_ G-34 Mercenary system corrupted by crushing effect. 00956_ G-34 Mercenary system terminally corrupted. 00956_ Sml. Laser fried. 00956_ T-07 Excavator is excavating. 00958_ U-05 Engineer lays Concrete. 00990_ Aluminum Leg destroyed. 00990_ Destroyed Flight Unit. 00990_ S-10 Pest system corrupted by crushing effect. 00991_ S-10 Pest system terminally corrupted. 00993_ Destroyed Flight Unit. 00993_ S-10 Pest system corrupted by crushing effect. 00995_ Aluminum Leg destroyed. 00999_ S-10 Pest IFF system glitched. Map ----- +----------------------------------------------------+ | ????????????????????????????????????????????? | | ????????????????????????????????????????????? | | ????????????????????????????????????????????? | | ????????????????????????????????????????????? | | ????????????????????????????????????????????? | | ????????????????????????????????????????????? | | ?????????????#####??????????????????????????? | | ?????????????# ????????????????????????? | | #######+##???# ??????????????????????? | | ##??# ] ##????????????????????? | | ???+ !! +?????????????????????? | | #???# !! "" #?????????????????????? | | " ###???????# """ #?????????????????????? | | #####+##### R" #?????????????????????? | | # # """ #?????????????????????? | | # """ """ #?? ???????????????????????? | | # """ "Y" #####/##???????????????????????? | | # """ %+ #########???????????????? | | + #### # #####???????????? | | # #??# # """"" # #???????????? | | # ! #??# %+ """"" # ##??????????? | | # = #??# # """"" # #??????????? | | ###########??# # % # #?????#????? | | #???????????## #####s### #????!##???? | | #????######## #??# #?# #??? !#???? | | ? ####@#### ###### !#???? | | ? ss % !#???? | | ? ######### !#???? | | +###????##### ## #?# ?# !!##???? | | ????????????# ?#######?# # ####????? | | ????????????#??????????# # #???????? | | ???????????????????????# + #???????? | | ???????????????????????# # ############?? | | ???????????????????????# # #????# """" #? | | ???????????????????????# ?# #????# """" #? | | ???????????????????????#####?# ###### """" #? | | ?????????????????????????????# + #? | | ?????????????????????????????######## ! #? | | ????????????????????????????????????# #? | | ????????????????????????????????????########? | | ????????????????????????????????????????????? | | ????????????????????????????????????????????? | | ????????????????????????????????????????????? | | ????????????????????????????????????????????? | | ????????????????????????????????????????????? | | ????????????????????????????????????????????? | | ????????????????????????????????????????????? | | ????????????????????????????????????????????? | | ????????????????????????????????????????????? | | ????????????????????????????????????????????? | +----------------------------------------------------+ Best States ------------- Heat Dissipation 28 Energy Generation 10 Energy Capacity 125 Matter Stores 300 Matter Capacity 300 Sight Range 16 Terrain Scan Density 10 Armor Coverage 150 Evasion (%) 40 Item Schematics ----------------- None Robot Schematics ------------------ None Fabricated ------------ Nothing Alien Tech Used ----------------- None Achievements -------------- None Challenges ------------ None Game ------ Seed MassNeutralizingInterpreter Manual? 0 Play Time 00:08:27 Cumulative 34.8 hours Start 2020.09.27 @ 11:42:39 End 2020.09.27 @ 12:01:13 Sessions 1 Manual Loads 0 Difficulty Rogue Special Mode None Game No. 83 Rogue 82 Adventurer 0 Explorer 1 Win Type - Total 0 Types 0/0/0/0/0/0/0/0/0 Lore% 23 Gallery% 41 Achievement% 28 Wizard Run 0 Options --------- ASCII 1 Keyboard 1 Movement Vi Keybinds 0 Fullscreen 2 Font 24/Proggy Map View 76x50 Tactical HUD 1 Map Filters NONE Filters NONE Steam 1 RUN: a3e69faf-6b20-40ca-86c2-20520d5843c9